[Event "NSV Open-ch Rapid 2019"]
[Site "Lueneburg"]
[Date "2019.08.03"]
[Round "5.19"]
[White "Guo, Philipp Ziming"]
[Black "Rothenberg, Jannik"]
[Result "0-1"]
[ECO "C11"]
[WhiteElo "1728"]
[BlackElo "1859"]
[Annotator "NA RC"]
[PlyCount "70"]
[EventDate "2019.08.03"]
[EventType "swiss"]
[EventCountry "GER"]
[SourceTitle "playchess.com"]
[Source "ChessBase"]
[SourceQuality "1"]
[TimeControl "600+5"]

1. e4 {[%emt 0:00:00]} e6 {[%emt 0:00:00]} 2. d4 {[%emt 0:00:00]} d5 {[%emt 0:00:00]} 3. Nc3 {[%emt 0:00:00]} Nf6 {[%emt 0:00:00]} 4. e5 {[%emt 0:00:00]} Nfd7 {[%emt 0:00:00]} 5. f4 {[%emt 0:00:00]} c5 {[%emt 0:00:01]} 6. Nf3 {[%emt 0:00:01]} Nc6 {[%emt 0:00:02]} 7. Be3 {[%emt 0:00:01]} a6 {[%emt 0:00:04]} 8. Qd2 {[%emt 0:00:04]} b5 {[%emt 0:00:01]} 9. dxc5 {[%emt 0:00:02]} Nxc5 {[%emt 0:00:08]} 10. Nd4 {[%emt 0:00:52]} Nxd4 {[%emt 0:00:12]} 11. Bxd4 {[%emt 0:00:08]} b4 {[%emt 0:00:17]} 12. Ne2 {[%emt 0:00:12]} Ne4 {[%emt 0:00:12]} 13. Qe3 {[%emt 0:00:15]} a5 {[%emt 0:00:14]} 14. Ng3 {[%emt 0:00:24]} Nxg3 {[%emt 0:00:20]} 15. Qxg3 {[%emt 0:00:06]} Ba6 {[%emt 0:00:04]} 16. Bd3 {[%emt 0:00:09]} Qc7 {[%emt 0:00:15]} 17. O-O {[%emt 0:00:08]} Bc5 {[%emt 0:00:17]} 18. Bxc5 {[%emt 0:00:51]} Qxc5+ {[%emt 0:00:02]} 19. Rf2 {[%emt 0:00:01]} Bxd3 {[%emt 0:00:09]} 20. Qxd3 {[%emt 0:00:06]} Rc8 {[%emt 0:00:17]} 21. Rd1 {[%emt 0:00:10]} O-O {[%emt 0:00:18]} 22. Kh1 {[%emt 0:00:02]} Qxf2 {[%emt 0:00:04]} 23. Rf1 {[%emt 0:00:33]} Qc5 {[%emt 0:00:11]} 24. f5 {[%emt 0:00:11]} Qxc2 {[%emt 0:00:09]} 25. Qh3 {[%emt 0:00:04]} exf5 {[%emt 0:00:14]} 26. Qf3 {[%emt 0:00:36]} Qe4 {[%emt 0:00:12]} 27. Qg3 {[%emt 0:00:14]} f4 {[%emt 0:00:10]} 28. Qg4 {[%emt 0:00:21]} Qxe5 {[%emt 0:00:03]} 29. h3 {[%emt 0:00:06]} d4 {[%emt 0:00:05]} 30. Rxf4 {[%emt 0:00:08]} Rc1+ {[%emt 0:00:02]} 31. Kh2 {[%emt 0:00:01]} Rf1 {[%emt 0:00:08]} 32. g3 {[%emt 0:00:30]} Rxf4 {[%emt 0:00:03]} 33. gxf4 {[%emt 0:00:01]} Qe3 {[%emt 0:00:01]} 34. f5 {[%emt 0:00:07]} d3 {[%emt 0:00:09]} 35. f6 {[%emt 0:00:06]} Qe2+ {[%emt 0:00:05]} 0-1

[Event "NSV Open-ch Rapid 2019"]
[Site "Lueneburg"]
[Date "2019.08.03"]
[Round "5.20"]
[White "Doederlein, Etienne"]
[Black "Kueck, Alexander"]
[Result "1-0"]
[ECO "A01"]
[WhiteElo "1868"]
[BlackElo "1374"]
[Annotator "NA RC"]
[PlyCount "71"]
[EventDate "2019.08.03"]
[EventType "swiss"]
[EventCountry "GER"]
[SourceTitle "playchess.com"]
[Source "ChessBase"]
[SourceQuality "1"]
[TimeControl "600+5"]

1. b3 {[%emt 0:01:06]} e5 {[%emt 0:00:00]} 2. Bb2 {[%emt 0:00:01]} Nc6 {[%emt 0:00:02]} 3. e3 {[%emt 0:00:02]} d5 {[%emt 0:00:01]} 4. Bb5 {[%emt 0:00:01]} Bd6 {[%emt 0:00:15]} 5. f4 {[%emt 0:00:52]} Qe7 {[%emt 0:00:41]} 6. Nf3 {[%emt 0:02:26]} f6 {[%emt 0:00:10]} 7. fxe5 {[%emt 0:00:25]} fxe5 {[%emt 0:00:21]} 8. O-O {[%emt 0:00:19]} Bd7 {[%emt 0:00:09]} 9. Nc3 {[%emt 0:00:16]} Nf6 {[%emt 0:00:07]} 10. d3 {[%emt 0:01:10]} e4 {[%emt 0:00:33]} 11. dxe4 {[%emt 0:00:06]} dxe4 {[%emt 0:00:21]} 12. Bxc6 {[%emt 0:00:28]} Bxc6 {[%emt 0:00:26]} 13. Nd4 {[%emt 0:00:01]} Qe5 {[%emt 0:00:29]} 14. g3 {[%emt 0:00:14]} Bd7 {[%emt 0:00:20]} 15. a4 {[%emt 0:00:54]} Ng4 {[%emt 0:00:23]} 16. Qe2 {[%emt 0:00:01]} O-O-O {[%emt 0:00:23]} 17. Ncb5 {[%emt 0:00:07]} Kb8 {[%emt 0:01:18]} 18. Nxd6 {[%emt 0:00:09]} cxd6 {[%emt 0:00:31]} 19. c4 {[%emt 0:00:31]} Qe8 {[%emt 0:01:29]} 20. Rad1 {[%emt 0:00:39]} Bc6 {[%emt 0:00:19]} 21. Qxg4 {[%emt 0:00:14]} Rg8 {[%emt 0:00:22]} 22. Qe6 {[%emt 0:00:15]} Qh5 {[%emt 0:03:10]} 23. Nxc6+ {[%emt 0:00:03]} bxc6 {[%emt 0:00:07]} 24. Rxd6 {[%emt 0:00:19]} Rde8 {[%emt 0:00:18]} 25. Qf5 {[%emt 0:01:26]} Qh6 {[%emt 0:00:13]} 26. Rxh6 {[%emt 0:00:05]} gxh6 {[%emt 0:01:35]} 27. Be5+ {[%emt 0:00:14]} Ka8 {[%emt 0:00:12]} 28. Qxe4 {[%emt 0:00:08]} Rc8 {[%emt 0:00:11]} 29. Rf6 {[%emt 0:00:10]} Kb7 {[%emt 0:00:17]} 30. Qxh7+ {[%emt 0:00:12]} Ka8 {[%emt 0:00:12]} 31. Qxh6 {[%emt 0:00:08]} Rcd8 {[%emt 0:01:04]} 32. Rxc6 {[%emt 0:00:20]} Rd1+ {[%emt 0:00:03]} 33. Kg2 {[%emt 0:00:04]} Rd2+ {[%emt 0:00:03]} 34. Kh3 {[%emt 0:00:03]} Rdd8 {[%emt 0:00:20]} 35. Rg6 {[%emt 0:00:14]} Rh8 {[%emt 0:00:06]} 36. Bxh8 {[%emt 0:00:01]} 1-0

[Event "NSV Open-ch Rapid 2019"]
[Site "Lueneburg"]
[Date "2019.08.03"]
[Round "5.21"]
[White "Mundt, Alexandra"]
[Black "Britsch, Benjamin"]
[Result "1-0"]
[ECO "C10"]
[WhiteElo "1756"]
[BlackElo "1835"]
[Annotator "NA RC"]
[PlyCount "59"]
[EventDate "2019.08.03"]
[EventType "swiss"]
[EventCountry "GER"]
[SourceTitle "playchess.com"]
[Source "ChessBase"]
[SourceQuality "1"]
[TimeControl "600+5"]

1. e4 {[%emt 0:00:00]} e6 {[%emt 0:00:00]} 2. d4 {[%emt 0:00:00]} d5 {[%emt 0:00:00]} 3. Nd2 {[%emt 0:00:01]} dxe4 {[%emt 0:00:00]} 4. Nxe4 {[%emt 0:00:03]} Bd7 {[%emt 0:00:00]} 5. Nf3 {[%emt 0:00:07]} Bc6 {[%emt 0:00:00]} 6. Ng3 {[%emt 0:00:03]} Qf6 {[%emt 0:00:16]} 7. Be2 {[%emt 0:00:05]} h6 {[%emt 0:00:05]} 8. O-O {[%emt 0:00:07]} Nd7 {[%emt 0:00:07]} 9. Re1 {[%emt 0:00:15]} O-O-O {[%emt 0:00:07]} 10. Be3 {[%emt 0:00:15]} Nb6 {[%emt 0:00:12]} 11. Qd2 {[%emt 0:00:18]} Nd5 {[%emt 0:00:15]} 12. Qa5 {[%emt 0:00:13]} Nxe3 {[%emt 0:00:16]} 13. fxe3 {[%emt 0:00:02]} Kb8 {[%emt 0:00:13]} 14. Ne5 {[%emt 0:00:22]} Ne7 {[%emt 0:01:20]} 15. Rf1 {[%emt 0:00:16]} Qg5 {[%emt 0:00:46]} 16. Nxc6+ {[%emt 0:00:02]} Nxc6 {[%emt 0:00:06]} 17. Qxg5 {[%emt 0:00:01]} hxg5 {[%emt 0:00:02]} 18. Rxf7 {[%emt 0:00:02]} e5 {[%emt 0:07:45]} 19. c3 {[%emt 0:00:14]} exd4 {[%emt 0:00:00]} 20. exd4 {[%emt 0:00:02]} Rh6 {[%emt 0:00:10]} 21. Raf1 {[%emt 0:01:25]} Bd6 {[%emt 0:00:00]} 22. Nf5 {[%emt 0:00:08]} Bxh2+ {[%emt 0:00:00]} 23. Kf2 {[%emt 0:00:01]} Rf6 {[%emt 0:00:00]} 24. Rxf6 {[%emt 0:00:11]} gxf6 {[%emt 0:00:00]} 25. g3 {[%emt 0:00:01]} Re8 {[%emt 0:00:00]} 26. Bb5 {[%emt 0:01:51]} Re6 {[%emt 0:00:00]} 27. Rh1 {[%emt 0:00:13]} Bxg3+ {[%emt 0:00:00]} 28. Kxg3 {[%emt 0:00:02]} Ne7 {[%emt 0:00:00]} 29. Rh8+ {[%emt 0:00:04]} Nc8 {[%emt 0:00:00]} 30. Bd7 {[%emt 0:00:02]} 1-0

[Event "NSV Open-ch Rapid 2019"]
[Site "Lueneburg"]
[Date "2019.08.03"]
[Round "5.22"]
[White "Weidenhoefer, Max"]
[Black "Rick, Niklas Corvin"]
[Result "1-0"]
[ECO "B13"]
[WhiteElo "1805"]
[BlackElo "1444"]
[Annotator "NA RC"]
[PlyCount "53"]
[EventDate "2019.08.03"]
[EventType "swiss"]
[EventCountry "GER"]
[SourceTitle "playchess.com"]
[Source "ChessBase"]
[SourceQuality "1"]
[TimeControl "600+5"]

1. e4 {[%emt 0:00:00]} d5 {[%emt 0:00:00]} 2. exd5 {[%emt 0:00:05]} Nf6 {[%emt 0:00:05]} 3. c4 {[%emt 0:00:05]} c6 {[%emt 0:00:05]} 4. d4 {[%emt 0:00:05]} cxd5 {[%emt 0:00:05]} 5. Nc3 {[%emt 0:00:05]} Bf5 {[%emt 0:00:05]} 6. Nf3 {[%emt 0:00:20]} e6 {[%emt 0:00:13]} 7. c5 {[%emt 0:00:10]} Nc6 {[%emt 0:00:11]} 8. Bf4 {[%emt 0:00:08]} Be7 {[%emt 0:00:45]} 9. Bb5 {[%emt 0:00:10]} O-O {[%emt 0:00:06]} 10. Bxc6 {[%emt 0:00:13]} bxc6 {[%emt 0:00:02]} 11. O-O {[%emt 0:00:10]} Qd7 {[%emt 0:00:29]} 12. Ne5 {[%emt 0:00:09]} Qb7 {[%emt 0:00:11]} 13. Qd2 {[%emt 0:00:21]} Rfd8 {[%emt 0:00:57]} 14. a3 {[%emt 0:00:10]} a5 {[%emt 0:00:04]} 15. Na4 {[%emt 0:00:21]} Ne4 {[%emt 0:00:11]} 16. Qe2 {[%emt 0:00:21]} Qb5 {[%emt 0:00:46]} 17. Qxb5 {[%emt 0:00:21]} cxb5 {[%emt 0:00:02]} 18. Nb6 {[%emt 0:00:18]} Ra6 {[%emt 0:07:13]} 19. Nc6 {[%emt 0:00:17]} Re8 {[%emt 0:00:00]} 20. Nxe7+ {[%emt 0:00:10]} Rxe7 {[%emt 0:00:00]} 21. f3 {[%emt 0:00:12]} Nf6 {[%emt 0:00:00]} 22. Bg5 {[%emt 0:00:33]} Rc7 {[%emt 0:00:00]} 23. Bxf6 {[%emt 0:00:46]} gxf6 {[%emt 0:00:00]} 24. Rac1 {[%emt 0:00:16]} e5 {[%emt 0:00:00]} 25. dxe5 {[%emt 0:00:43]} fxe5 {[%emt 0:00:00]} 26. Nxd5 {[%emt 0:00:02]} Rc8 {[%emt 0:00:00]} 27. Ne7+ {[%emt 0:00:03]} 1-0

[Event "NSV Open-ch Rapid 2019"]
[Site "Lueneburg"]
[Date "2019.08.04"]
[Round "6.4"]
[White "Kotyk, Michael"]
[Black "Toepper, Olaf"]
[Result "1-0"]
[ECO "A05"]
[WhiteElo "1998"]
[BlackElo "1896"]
[Annotator "NA RC"]
[PlyCount "95"]
[EventDate "2019.08.03"]
[EventType "swiss"]
[EventCountry "GER"]
[SourceTitle "playchess.com"]
[Source "ChessBase"]
[SourceQuality "1"]
[TimeControl "600+5"]

1. Nf3 {[%emt 0:00:01]} Nf6 {[%emt 0:10:05]} 2. b3 g6 {[%emt 0:00:00]} 3. Bb2 {[%emt 0:00:01]} Bg7 4. g3 O-O {[%emt 0:00:15]} 5. Bg2 d5 {[%emt 0:00:00]} 6. O-O {[%emt 0:00:09]} c5 {[%emt 0:00:00]} 7. e3 {[%emt 0:00:03]} Nc6 {[%emt 0:00:00]} 8. d4 {[%emt 0:00:22]} cxd4 {[%emt 0:00:00]} 9. Nxd4 {[%emt 0:00:03]} Nxd4 {[%emt 0:00:00]} 10. Bxd4 {[%emt 0:00:05]} Bf5 {[%emt 0:00:00]} 11. Nd2 {[%emt 0:00:41]} Rc8 {[%emt 0:00:00]} 12. c4 {[%emt 0:00:21]} dxc4 {[%emt 0:00:00]} 13. Nxc4 {[%emt 0:00:04]} b5 {[%emt 0:00:00]} 14. Ne5 {[%emt 0:00:11]} Ne4 {[%emt 0:00:00]} 15. g4 {[%emt 0:00:31]} Bxe5 {[%emt 0:00:00]} 16. Bxe5 {[%emt 0:00:06]} f6 {[%emt 0:00:00]} 17. Bf4 {[%emt 0:03:22]} Nd2 {[%emt 0:00:00]} 18. gxf5 {[%emt 0:00:09]} Nxf1 {[%emt 0:00:00]} 19. Qd5+ {[%emt 0:00:22]} Kh8 {[%emt 0:00:00]} 20. Rxf1 {[%emt 0:00:03]} Qe8 {[%emt 0:00:00]} 21. fxg6 {[%emt 0:00:58]} Qxg6 {[%emt 0:00:00]} 22. Kh1 {[%emt 0:00:13]} Rcd8 {[%emt 0:00:00]} 23. Qe6 {[%emt 0:00:11]} Rg8 {[%emt 0:00:00]} 24. Be4 {[%emt 0:00:18]} Qg7 {[%emt 0:00:00]} 25. Bg3 {[%emt 0:00:02]} Rd2 {[%emt 0:00:00]} 26. a4 {[%emt 0:00:04]} bxa4 {[%emt 0:00:00]} 27. bxa4 {[%emt 0:00:01]} Rgd8 {[%emt 0:00:00]} 28. Kg2 {[%emt 0:00:17]} R8d6 {[%emt 0:00:00]} 29. Qc8+ {[%emt 0:00:14]} Rd8 {[%emt 0:00:00]} 30. Qf5 {[%emt 0:00:36]} Qf7 {[%emt 0:00:00]} 31. Rc1 {[%emt 0:00:55]} Rg8 {[%emt 0:00:00]} 32. Rc7 {[%emt 0:00:13]} a6 {[%emt 0:00:27]} 33. Ra7 {[%emt 0:00:21]} Rd6 {[%emt 0:00:14]} 34. Kf3 {[%emt 0:00:15]} Rdd8 {[%emt 0:00:31]} 35. Rxa6 {[%emt 0:00:08]} Rg5 {[%emt 0:00:01]} 36. Qh3 {[%emt 0:00:16]} Rh5 {[%emt 0:00:17]} 37. Qf1 {[%emt 0:00:07]} Rc5 {[%emt 0:00:19]} 38. Kg2 {[%emt 0:00:04]} Rg8 {[%emt 0:00:12]} 39. Qd3 {[%emt 0:00:13]} h5 {[%emt 0:00:13]} 40. h4 {[%emt 0:00:25]} Rcc8 {[%emt 0:00:23]} 41. Bf5 {[%emt 0:00:05]} Rcd8 {[%emt 0:00:03]} 42. Qe4 {[%emt 0:00:01]} Rd2 {[%emt 0:00:10]} 43. Be6 {[%emt 0:00:08]} Qg7 {[%emt 0:00:10]} 44. Bxg8 {[%emt 0:00:03]} Qxg8 {[%emt 0:00:01]} 45. Ra5 {[%emt 0:00:09]} Qf7 {[%emt 0:00:04]} 46. Qf5 {[%emt 0:00:03]} Qa2 {[%emt 0:00:12]} 47. Qg6 {[%emt 0:00:20]} Rd5 {[%emt 0:00:05]} 48. Ra8+ {[%emt 0:00:46]} 1-0

[Event "NSV Open-ch Rapid 2019"]
[Site "Lueneburg"]
[Date "2019.08.04"]
[Round "6.10"]
[White "Aarav Dengla"]
[Black "Chennaoui, Yasin"]
[Result "1/2-1/2"]
[ECO "B22"]
[WhiteElo "2051"]
[BlackElo "2092"]
[Annotator "NA RC"]
[PlyCount "112"]
[EventDate "2019.08.03"]
[EventType "swiss"]
[EventCountry "GER"]
[SourceTitle "playchess.com"]
[Source "ChessBase"]
[SourceQuality "1"]
[TimeControl "600+5"]

1. e4 {[%emt 0:00:00]} c5 {[%emt 0:00:00]} 2. c3 {[%emt 0:00:00]} d5 {[%emt 0:00:00]} 3. exd5 {[%emt 0:00:00]} Qxd5 {[%emt 0:00:01]} 4. d4 {[%emt 0:00:00]} Nc6 {[%emt 0:00:01]} 5. Nf3 {[%emt 0:00:00]} Nf6 {[%emt 0:00:02]} 6. Na3 {[%emt 0:00:07]} cxd4 {[%emt 0:00:02]} 7. Nb5 {[%emt 0:00:01]} Qd8 {[%emt 0:00:38]} 8. Nbxd4 {[%emt 0:00:02]} Nxd4 {[%emt 0:00:29]} 9. Nxd4 {[%emt 0:00:02]} e6 {[%emt 0:00:10]} 10. Bb5+ {[%emt 0:00:10]} Bd7 {[%emt 0:00:02]} 11. O-O {[%emt 0:00:02]} Bc5 {[%emt 0:00:16]} 12. Bxd7+ {[%emt 0:00:14]} Qxd7 {[%emt 0:00:01]} 13. Nb3 {[%emt 0:00:00]} Bb6 {[%emt 0:00:08]} 14. Qxd7+ {[%emt 0:00:15]} Kxd7 {[%emt 0:00:03]} 15. Bf4 {[%emt 0:00:06]} Rhd8 {[%emt 0:00:08]} 16. Rad1+ {[%emt 0:00:02]} Ke7 {[%emt 0:00:01]} 17. Nd2 {[%emt 0:00:12]} Nd5 {[%emt 0:00:16]} 18. Bg3 {[%emt 0:00:01]} Bc7 {[%emt 0:00:01]} 19. Bxc7 {[%emt 0:00:04]} Nxc7 {[%emt 0:00:02]} 20. Nc4 {[%emt 0:00:06]} Rxd1 {[%emt 0:00:21]} 21. Rxd1 {[%emt 0:00:03]} Rd8 {[%emt 0:00:01]} 22. Rxd8 {[%emt 0:00:03]} Kxd8 {[%emt 0:00:01]} 23. Nd6 {[%emt 0:00:02]} b5 {[%emt 0:00:54]} 24. Nxf7+ {[%emt 0:00:04]} Ke7 {[%emt 0:00:06]} 25. Ne5 {[%emt 0:00:06]} Kd6 {[%emt 0:00:02]} 26. Nf7+ {[%emt 0:00:08]} Ke7 {[%emt 0:00:01]} 27. Ne5 {[%emt 0:00:02]} Kd6 {[%emt 0:00:01]} 28. Nd3 {[%emt 0:00:11]} Kd5 {[%emt 0:00:20]} 29. b3 {[%emt 0:00:01]} Ke4 {[%emt 0:00:08]} 30. Nc5+ {[%emt 0:00:14]} Kd5 {[%emt 0:00:00]} 31. Nd3 {[%emt 0:00:03]} Ke4 {[%emt 0:00:01]} 32. Nb2 {[%emt 0:00:11]} Nd5 {[%emt 0:00:39]} 33. c4 {[%emt 0:00:08]} Nc3 {[%emt 0:00:26]} 34. Kf1 {[%emt 0:01:34]} Nxa2 {[%emt 0:00:07]} 35. cxb5 {[%emt 0:00:09]} Nc1 {[%emt 0:00:06]} 36. Nc4 {[%emt 0:00:07]} Nxb3 {[%emt 0:00:03]} 37. b6 {[%emt 0:00:02]} axb6 {[%emt 0:00:04]} 38. Nxb6 {[%emt 0:00:02]} Nc1 {[%emt 0:00:22]} 39. Nd7 {[%emt 0:00:06]} Kf5 {[%emt 0:00:04]} 40. Ke1 {[%emt 0:00:13]} h5 {[%emt 0:00:13]} 41. Kd2 {[%emt 0:00:10]} Nb3+ {[%emt 0:00:03]} 42. Ke3 {[%emt 0:00:09]} Na5 {[%emt 0:00:08]} 43. Kd3 {[%emt 0:00:20]} Nc6 {[%emt 0:00:04]} 44. f3 {[%emt 0:00:04]} g5 {[%emt 0:00:16]} 45. Ke3 {[%emt 0:00:07]} Ne7 {[%emt 0:00:13]} 46. g3 {[%emt 0:00:17]} e5 {[%emt 0:00:49]} 47. g4+ {[%emt 0:00:07]} hxg4 {[%emt 0:00:39]} 48. fxg4+ {[%emt 0:00:02]} Kxg4 {[%emt 0:00:02]} 49. Nxe5+ {[%emt 0:00:03]} Kh3 {[%emt 0:00:16]} 50. Nf3 {[%emt 0:00:10]} Nf5+ {[%emt 0:00:34]} 51. Ke4 {[%emt 0:00:11]} g4 {[%emt 0:00:01]} 52. Ne5 {[%emt 0:00:04]} Nd6+ {[%emt 0:00:10]} 53. Kf4 {[%emt 0:00:05]} Nc8 {[%emt 0:01:36]} 54. Nd3 {[%emt 0:00:18]} Ne7 {[%emt 0:00:11]} 55. Nf2+ {[%emt 0:00:03]} Kxh2 {[%emt 0:00:16]} 56. Kxg4 {[%emt 0:00:00]} Nf5 {[%emt 0:00:04]} 1/2-1/2

[Event "NSV Open-ch Rapid 2019"]
[Site "Lueneburg"]
[Date "2019.08.04"]
[Round "6.12"]
[White "Schulz, Daniel"]
[Black "Reimers, Achim"]
[Result "1-0"]
[ECO "A90"]
[WhiteElo "2071"]
[BlackElo "1975"]
[Annotator "NA RC"]
[PlyCount "58"]
[EventDate "2019.08.03"]
[EventType "swiss"]
[EventCountry "GER"]
[SourceTitle "playchess.com"]
[Source "ChessBase"]
[SourceQuality "1"]
[TimeControl "600+5"]

1. d4 {[%emt 0:00:00]} d5 {[%emt 0:10:05]} 2. c4 {[%emt 0:10:10]} c6 {[%emt 0:00:00]} 3. Nf3 {[%emt 0:00:00]} e6 {[%emt 0:00:00]} 4. g3 {[%emt 0:00:00]} f5 {[%emt 0:00:00]} 5. Bg2 {[%emt 0:00:00]} Nf6 {[%emt 0:00:00]} 6. O-O {[%emt 0:00:00]} Bd6 {[%emt 0:00:00]} 7. Nc3 {[%emt 0:00:00]} O-O {[%emt 0:00:00]} 8. Qc2 {[%emt 0:00:00]} Nbd7 {[%emt 0:00:00]} 9. cxd5 {[%emt 0:00:00]} cxd5 {[%emt 0:00:00]} 10. Nb5 {[%emt 0:00:00]} Bb8 {[%emt 0:00:00]} 11. Bf4 {[%emt 0:00:00]} a6 {[%emt 0:00:00]} 12. Nc7 {[%emt 0:00:00]} Bxc7 {[%emt 0:00:00]} 13. Qxc7 {[%emt 0:00:00]} Qxc7 {[%emt 0:00:00]} 14. Bxc7 {[%emt 0:00:00]} Ne4 {[%emt 0:00:00]} 15. Rac1 {[%emt 0:00:00]} Ndf6 {[%emt 0:00:00]} 16. Bf4 {[%emt 0:00:00]} h6 {[%emt 0:00:00]} 17. Rc7 {[%emt 0:00:00]} Rf7 {[%emt 0:00:00]} 18. Rxf7 {[%emt 0:00:00]} Kxf7 {[%emt 0:00:00]} 19. Ne5+ {[%emt 0:00:00]} Ke8 {[%emt 0:00:00]} 20. Rc1 {[%emt 0:00:00]} Nd7 {[%emt 0:00:00]} 21. Rc7 {[%emt 0:00:00]} Nef6 {[%emt 0:00:00]} 22. h4 {[%emt 0:00:00]} Kd8 {[%emt 0:00:00]} 23. Nf7+ {[%emt 0:00:00]} Ke8 {[%emt 0:00:00]} 24. Nd6+ {[%emt 0:00:00]} Kd8 {[%emt 0:00:00]} 25. Nxb7+ {[%emt 0:00:00]} Bxb7 {[%emt 0:00:00]} 26. Rxb7 {[%emt 0:00:00]} Rc8 {[%emt 0:00:00]} 27. Bf3 {[%emt 0:00:00]} Rc6 {[%emt 0:00:07]} 28. Kg2 {[%emt 0:00:00]} Rb6 {[%emt 0:00:23]} 29. Bc7+ {[%emt 0:00:00]} Ke8 {[%emt 0:01:50]} 1-0

[Event "NSV Open-ch Rapid 2019"]
[Site "Lueneburg"]
[Date "2019.08.04"]
[Round "6.14"]
[White "Rothenberg, Jannik"]
[Black "Rothenberg, Nina"]
[Result "1-0"]
[ECO "D58"]
[WhiteElo "1859"]
[BlackElo "1768"]
[Annotator "NA RC"]
[PlyCount "57"]
[EventDate "2019.08.03"]
[EventType "swiss"]
[EventCountry "GER"]
[SourceTitle "playchess.com"]
[Source "ChessBase"]
[SourceQuality "1"]
[TimeControl "600+5"]

1. d4 {[%emt 0:00:00]} e6 {[%emt 0:00:00]} 2. c4 {[%emt 0:00:00]} Nf6 {[%emt 0:00:00]} 3. Nf3 {[%emt 0:00:02]} d5 {[%emt 0:00:00]} 4. Nc3 {[%emt 0:00:06]} Be7 {[%emt 0:00:00]} 5. Bg5 {[%emt 0:00:06]} O-O {[%emt 0:00:05]} 6. e3 {[%emt 0:00:04]} h6 {[%emt 0:00:09]} 7. Bh4 {[%emt 0:00:01]} b6 {[%emt 0:00:01]} 8. cxd5 {[%emt 0:00:01]} exd5 {[%emt 0:00:01]} 9. Be2 {[%emt 0:00:16]} Bb7 {[%emt 0:00:02]} 10. O-O {[%emt 0:00:05]} c5 {[%emt 0:00:19]} 11. dxc5 {[%emt 0:00:17]} bxc5 {[%emt 0:00:01]} 12. Qb3 {[%emt 0:00:09]} Qc7 {[%emt 0:01:28]} 13. Bxf6 {[%emt 0:00:55]} Bxf6 {[%emt 0:00:04]} 14. Nxd5 {[%emt 0:00:11]} Bxd5 {[%emt 0:00:01]} 15. Qxd5 {[%emt 0:00:03]} Bxb2 {[%emt 0:00:02]} 16. Rab1 {[%emt 0:00:10]} Nc6 {[%emt 0:00:40]} 17. Rxb2 {[%emt 0:00:11]} Nb4 {[%emt 0:00:03]} 18. Qc4 {[%emt 0:00:07]} Qa5 {[%emt 0:00:11]} 19. h3 {[%emt 0:00:39]} Rfd8 {[%emt 0:00:03]} 20. Rc1 {[%emt 0:00:04]} Rac8 {[%emt 0:00:01]} 21. Ne5 {[%emt 0:00:15]} Qc7 {[%emt 0:00:24]} 22. Rxb4 {[%emt 0:00:47]} Qxe5 {[%emt 0:00:01]} 23. Rb7 {[%emt 0:00:04]} Qf6 {[%emt 0:00:07]} 24. Rxa7 {[%emt 0:00:15]} Rd2 {[%emt 0:00:02]} 25. Bf3 {[%emt 0:00:19]} Rb8 {[%emt 0:00:05]} 26. Qxc5 {[%emt 0:00:23]} Rbb2 {[%emt 0:00:02]} 27. Rf1 {[%emt 0:00:21]} Rbc2 {[%emt 0:00:07]} 28. Ra8+ {[%emt 0:00:09]} Kh7 {[%emt 0:00:02]} 29. Be4+ {[%emt 0:00:03]} 1-0

[Event "NSV Open-ch Rapid 2019"]
[Site "Lueneburg"]
[Date "2019.08.04"]
[Round "6.16"]
[White "Kolhoff, Manfred"]
[Black "Doederlein, Etienne"]
[Result "1-0"]
[ECO "B05"]
[WhiteElo "1616"]
[BlackElo "1868"]
[Annotator "NA RC"]
[PlyCount "108"]
[EventDate "2019.08.03"]
[EventType "swiss"]
[EventCountry "GER"]
[SourceTitle "playchess.com"]
[Source "ChessBase"]
[SourceQuality "1"]
[TimeControl "600+5"]

1. e4 {[%emt 0:00:00]} Nf6 {[%emt 0:00:00]} 2. e5 {[%emt 0:00:00]} Nd5 {[%emt 0:00:00]} 3. d4 {[%emt 0:00:00]} d6 {[%emt 0:00:01]} 4. c4 {[%emt 0:00:00]} Nb6 {[%emt 0:00:01]} 5. exd6 {[%emt 0:00:02]} exd6 {[%emt 0:00:03]} 6. Nf3 {[%emt 0:00:04]} Bg4 {[%emt 0:00:05]} 7. Qb3 {[%emt 0:00:29]} Bxf3 {[%emt 0:00:07]} 8. Qxf3 {[%emt 0:00:04]} Qe7+ {[%emt 0:00:37]} 9. Be3 {[%emt 0:00:04]} c6 {[%emt 0:00:06]} 10. Nc3 {[%emt 0:00:03]} g6 {[%emt 0:00:05]} 11. Be2 {[%emt 0:00:04]} Bg7 {[%emt 0:00:01]} 12. Rd1 {[%emt 0:00:02]} O-O {[%emt 0:00:05]} 13. O-O {[%emt 0:00:02]} N8d7 {[%emt 0:00:16]} 14. Rfe1 {[%emt 0:00:01]} Rfe8 {[%emt 0:00:54]} 15. h3 {[%emt 0:00:09]} Nf6 {[%emt 0:00:49]} 16. Kf1 {[%emt 0:00:10]} Ne4 {[%emt 0:00:30]} 17. Bd3 {[%emt 0:00:08]} Nxc3 {[%emt 0:00:10]} 18. bxc3 {[%emt 0:00:02]} Qf6 {[%emt 0:00:29]} 19. Qg3 {[%emt 0:00:15]} Qd8 {[%emt 0:00:28]} 20. Bf4 {[%emt 0:00:06]} d5 {[%emt 0:00:22]} 21. c5 {[%emt 0:00:05]} Nc4 {[%emt 0:00:23]} 22. Bxc4 {[%emt 0:00:04]} dxc4 {[%emt 0:00:01]} 23. Bd6 {[%emt 0:01:02]} Qa5 {[%emt 0:00:26]} 24. Rxe8+ {[%emt 0:09:04]} Rxe8 {[%emt 0:06:01]} 25. Ra1 {[%emt 0:00:00]} Qa3 {[%emt 0:00:00]} 26. Bf4 {[%emt 0:00:00]} Qb2 {[%emt 0:00:00]} 27. Rc1 {[%emt 0:00:00]} Qxa2 {[%emt 0:00:00]} 28. Qg4 {[%emt 0:00:00]} Re6 {[%emt 0:00:00]} 29. Qg5 {[%emt 0:00:00]} Qa5 {[%emt 0:00:00]} 30. Be3 {[%emt 0:00:00]} Qc7 {[%emt 0:00:00]} 31. Ra1 {[%emt 0:00:00]} a6 {[%emt 0:00:00]} 32. Qg4 {[%emt 0:00:00]} f5 {[%emt 0:00:00]} 33. Qe2 {[%emt 0:00:00]} Qh2 {[%emt 0:00:00]} 34. Qxc4 {[%emt 0:00:00]} Kf7 {[%emt 0:00:00]} 35. Ra3 {[%emt 0:00:00]} Qh1+ {[%emt 0:00:00]} 36. Ke2 {[%emt 0:00:00]} Qxg2 {[%emt 0:00:00]} 37. Rb3 {[%emt 0:00:00]} f4 {[%emt 0:00:00]} 38. Rxb7+ {[%emt 0:00:00]} Kf6 {[%emt 0:00:00]} 39. Rxg7 {[%emt 0:00:00]} Rxe3+ {[%emt 0:00:00]} 40. Kd1 {[%emt 0:00:00]} Qg1+ {[%emt 0:00:00]} 41. Kc2 {[%emt 0:00:00]} Qxf2+ {[%emt 0:01:25]} 42. Kb3 Kxg7 {[%emt 0:00:00]} 43. Qxa6 {[%emt 0:00:00]} Re2 {[%emt 0:00:00]} 44. Qb7+ {[%emt 0:00:00]} Kh6 {[%emt 0:00:00]} 45. Qf7 {[%emt 0:00:00]} Rb2+ {[%emt 0:00:00]} 46. Ka3 {[%emt 0:00:00]} Ra2+ {[%emt 0:00:00]} 47. Qxa2 {[%emt 0:00:00]} Qxa2+ {[%emt 0:00:00]} 48. Kxa2 {[%emt 0:00:00]} Kg5 {[%emt 0:00:00]} 49. d5 {[%emt 0:00:00]} cxd5 {[%emt 0:00:40]} 50. c6 f3 {[%emt 0:00:00]} 51. c7 {[%emt 0:00:00]} f2 {[%emt 0:00:00]} 52. c8=Q {[%emt 0:00:00]} f1=Q {[%emt 0:00:00]} 53. Qd8+ {[%emt 0:00:00]} Kh6 {[%emt 0:00:00]} 54. Qxd5 {[%emt 0:00:00]} Qg2+ {[%emt 0:00:00]} 1-0